bitfinex/quotes_ETHUSD_20260108
["timestamp","ask_amount","ask_price","bid_price","bid_amount"]
[1767882546722,0.852,3076.5,3074.6,0.05851375]
[1767882546937,0.852,3076.5,3074.9,0.05851375]
[1767882547126,4.17787862,3077.2,3075.1,0.05851375]
[1767882547317,0.852,3076.8,3075.3,0.05851375]
[1767882547949,6.50035972,3076.8,3075.4,3.25160954]
[1767882548121,3.25017986,3076.8,3075.4,6.50321908]
[1767882548529,0.852,3077.1,3075.4,6.50321908]
[1767882548530,3.24984636,3077.1,3075.4,9.75482862]
[1767882548731,1.26980175,3077.0,3075.5,0.05851375]
[1767882548933,1.26980175,3077.0,3075.4,6.50321908]
[1767882549150,0.41780175,3077.0,3075.5,0.05851375]
[1767882549364,0.852,3076.9,3075.5,0.05851375]
[1767882549520,0.41780175,3077.0,3075.5,0.05851375]
[1767882549722,1.26980175,3077.0,3075.7,0.05851375]
[1767882549933,1.26980175,3077.0,3075.7,3.30972986]
[1767882550121,4.10191875,3077.0,3075.7,3.30972986]
[1767882550655,0.001,3077.3,3075.9,0.05851375]
[1767882550824,3.25067769,3077.3,3075.9,0.05851375]
[1767882551023,6.50035538,3077.3,3075.8,0.05851375]
[1767882551223,6.50035538,3077.3,3075.7,6.56102224]
[1767882551419,0.74285265,3077.2,3076.1,0.05851375]
[1767882551618,0.853,3077.3,3076.1,0.05851375]
[1767882551846,0.001,3077.3,3076.3,0.05851375]
[1767882552057,0.001,3077.3,3075.9,0.05851375]
[1767882552377,0.852,3077.2,3075.6,3.25133762]
[1767882552533,0.17811711,3077.1,3075.7,0.05851375]
[1767882552728,1.03011711,3077.1,3075.5,0.05851375]
[1767882552929,1.03011711,3077.1,3075.8,3.3096502]
[1767882552930,0.17811711,3077.1,3075.8,3.3096502]
[1767882553123,0.001,3077.3,3076.0,0.05851375]
[1767882553331,0.9291711,3077.3,3075.5,0.05851375]
[1767882553535,0.001,3076.7,3075.5,0.05851375]
[1767882553731,0.001,3076.7,3075.9,0.05851375]
[1767882553961,0.001,3077.3,3076.0,6.50195058]
[1767882554122,0.9281711,3078.3,3076.5,0.05851375]
[1767882554329,0.9281711,3078.1,3076.3,0.05851375]
[1767882554555,0.9281711,3078.1,3076.1,0.05851375]
[1767882554972,0.9281711,3077.9,3076.3,0.05851375]
[1767882555127,0.852,3077.8,3076.3,0.05851375]
[1767882555461,0.17801711,3077.8,3076.3,0.05851375]
[1767882555660,1.10618821,3077.8,3076.1,0.05851375]
[1767882555952,6.49835916,3077.7,3076.3,0.05851375]
[1767882556893,0.17801711,3077.8,3076.5,0.05851375]
[1767882557034,3.2486518,3078.2,3076.7,0.05851375]
[1767882557228,3.2486518,3078.2,3076.9,0.05851375]
[1767882557229,0.852,3078.1,3076.9,0.05851375]
[1767882557565,3.24819331,3078.7,3076.9,0.05851375]
[1767882557566,0.852,3078.5,3077.2,0.05851375]
[1767882557929,6.49688148,3078.4,3077.0,3.24991875]
[1767882558126,1.7791711,3078.8,3077.5,0.05851375]
[1767882558349,3.24815287,3078.7,3077.5,0.05851375]
[1767882558552,0.9291711,3079.3,3077.7,0.05851375]
[1767882558739,6.49519354,3079.2,3077.7,0.05851375]
[1767882558942,6.49519354,3079.2,3077.9,0.05851375]
[1767882558943,0.82753646,3079.1,3077.9,0.05851375]
[1767882559143,3.24759677,3079.2,3077.9,0.05851375]
[1767882559342,4.09859677,3079.2,3077.9,0.05851375]
[1767882559538,4.09859677,3079.2,3078.1,0.05851375]
[1767882560236,5.0277503,3079.3,3078.1,3.30722912]
[1767882560567,0.001,3079.3,3078.1,3.30722912]
[1767882560937,0.001,3079.3,3078.3,0.05851375]
[1767882561283,6.49599712,3079.3,3077.9,0.05851375]
[1767882561444,6.49599712,3079.3,3078.1,3.24872938]
[1767882561773,6.49599712,3079.3,3078.0,3.24881005]
[1767882561938,0.001,3079.3,3078.1,0.05851375]
[1767882562139,0.852,3079.3,3078.0,3.24886289]
[1767882562340,0.852,3079.3,3077.9,3.30745398]
[1767882563454,0.852,3079.3,3078.1,0.05851375]
[1767882563647,0.852,3079.3,3077.9,3.24894023]
[1767882563840,0.852,3079.3,3078.0,0.05851375]
[1767882564238,3.24759677,3079.2,3078.0,0.05851375]
[1767882564453,6.49519354,3079.2,3078.0,3.30737664]
[1767882564660,4.09952898,3079.3,3078.0,6.55623953]
[1767882565064,0.001,3079.0,3078.0,3.30737664]
[1767882565365,0.001,3079.0,3078.0,3.30734555]
[1767882566177,0.001,3079.0,3078.2,0.05851375]
[1767882566744,0.001,3079.0,3078.4,0.05851375]
[1767882567174,0.001,3079.3,3078.4,0.05851375]
[1767882567175,0.001,3079.3,3078.6,0.05851375]
[1767882567346,0.001,3079.3,3078.2,0.05851375]
[1767882567753,0.001,3079.3,3078.4,0.05851375]
[1767882568084,3.24667711,3080.1,3078.4,0.05851375]
[1767882568085,0.9281711,3080.4,3078.6,0.05851375]
[1767882568246,7.34387406,3080.3,3078.8,0.05851375]
[1767882568447,3.24643703,3080.3,3078.8,0.05851375]
[1767882568961,0.851,3080.2,3079.0,0.05851375]
[1767882569658,0.851,3080.2,3079.2,0.05851375]
[1767882569854,6.49287406,3080.3,3079.2,0.05851375]
[1767882570056,0.9281711,3080.8,3079.4,0.05851375]
[1767882570057,0.851,3080.4,3079.4,0.05851375]
[1767882570276,0.351,3080.4,3079.5,0.05851375]
[1767882570578,0.9281711,3080.3,3079.2,3.24757617]
[1767882570780,7.34366706,3080.4,3079.1,0.05851375]
[1767882571151,0.9281711,3080.3,3078.4,0.90951375]
[1767882571380,0.9281711,3080.3,3078.6,0.05851375]
[1767882571548,0.9281711,3080.3,3079.1,3.24769273]
[1767882571755,0.74208382,3080.2,3079.1,3.24769273]
[1767882571952,6.49266706,3080.4,3079.2,3.30606818]
[1767882572177,3.24633353,3080.4,3079.2,6.55366495]
[1767882572354,4.09704518,3080.7,3079.4,0.05851375]
[1767882572560,3.24604518,3080.7,3079.7,0.05851375]
[1767882572761,0.9281711,3080.9,3079.4,0.05851375]
[1767882572986,4.1740197,3080.9,3079.4,0.05851375]
[1767882573183,7.4198683,3080.9,3079.6,0.05851375]
[1767882573392,0.93388768,3080.8,3079.0,0.90951375]
[1767882573683,0.93388768,3080.8,3079.3,0.05851375]
[1767882574076,0.93388768,3080.8,3078.7,3.24808696]
[1767882574077,0.93388768,3080.8,3078.9,3.24788628]
[1767882574273,0.93388768,3080.4,3079.0,0.05851375]
[1767882574476,1.78488768,3080.3,3079.0,0.05851375]
[1767882574681,0.93388768,3080.2,3078.8,3.30653245]
[1767882574858,0.93388768,3080.2,3079.0,0.05851375]
[1767882575382,0.851,3080.1,3078.8,0.05851375]
[1767882575582,0.851,3080.1,3078.9,3.24791321]
[1767882575776,0.851,3080.1,3078.8,0.05851375]
[1767882576089,0.93388768,3080.2,3078.1,3.24872002]
[1767882576090,0.93388768,3079.9,3078.1,0.05851375]
[1767882576284,0.93388768,3079.5,3078.1,3.30717964]
[1767882576590,2.00142618,3079.5,3078.1,3.30717964]
[1767882576966,2.00142618,3079.5,3078.1,3.24866589]
[1767882577485,0.851,3079.4,3078.1,6.55593699]
[1767882577793,7.34492816,3079.8,3078.5,0.05851375]
[1767882577989,6.49392816,3079.8,3078.5,0.05851375]
[1767882578189,0.93388768,3079.6,3078.3,0.05851375]
[1767882578482,7.42844848,3079.5,3078.1,6.55593699]
[1767882579052,8.27944848,3079.5,3078.1,3.24866589]
[1767882579289,0.93388768,3079.4,3078.1,3.2487481]
[1767882580286,0.001,3079.9,3077.5,0.851]
[1767882580287,0.93388768,3079.2,3077.5,0.851]
[1767882580587,0.93388768,3079.0,3077.8,3.24898649]
[1767882580786,0.93388768,3079.0,3077.7,0.05851375]
[1767882580989,0.93388768,3079.0,3078.0,3.24883449]
[1767882581571,0.93388768,3079.0,3077.9,3.24891505]
[1767882581768,1.78488768,3079.0,3077.9,3.24891505]
[1767882581983,1.78488768,3079.0,3078.0,3.24885243]
[1767882582364,0.93388768,3079.7,3077.9,0.05851375]
[1767882582564,0.93388768,3079.5,3077.9,0.05851375]
[1767882583282,6.49413902,3079.7,3078.1,0.92901596]
[1767882583479,4.18095719,3079.7,3078.4,0.05851375]
[1767882583787,8.2790267,3079.7,3078.2,0.05851375]
[1767882584110,6.91233474,3079.7,3078.4,0.05851375]
[1767882584262,3.66526523,3079.7,3078.4,0.05851375]
[1767882584463,0.851,3079.8,3078.5,6.49667044]
[1767882584770,0.851,3079.8,3078.6,0.05851375]
[1767882584967,4.09796605,3079.8,3078.6,0.05851375]
[1767882585187,3.24789725,3079.9,3078.6,0.05851375]
[1767882585368,3.24789725,3079.9,3078.8,0.05851375]
[1767882585869,3.24787203,3079.9,3078.8,0.05851375]
[1767882586071,6.49474406,3079.9,3078.6,0.05851375]
[1767882586339,0.93388768,3079.8,3078.6,0.05851375]
[1767882586490,6.49413902,3079.7,3078.3,3.24854627]
[1767882586690,6.49413902,3079.7,3078.4,0.05851375]
[1767882586890,3.24706951,3079.7,3078.4,0.05851375]
[1767882587263,4.18088634,3079.8,3078.6,0.05851375]
[1767882587910,0.93388768,3079.7,3078.3,6.49709254]
[1767882588264,1.78488768,3079.7,3078.3,3.24854627]
[1767882588459,7.42844848,3079.5,3078.9,0.002]
[1767882588689,4.18116808,3079.5,3078.9,0.002]
[1767882589310,0.93388768,3079.5,3078.9,0.002]
[1767882590285,0.93388768,3079.5,3078.5,0.002]
[1767882590702,0.001,3079.9,3078.6,0.98752971]
[1767882590915,3.24791054,3079.9,3078.6,0.98752971]
[1767882591210,0.001,3079.9,3078.9,0.05851375]
[1767882591408,6.49482556,3079.9,3078.6,0.98752971]
[1767882591614,6.49482556,3079.9,3078.8,0.05851375]
[1767882591778,3.24791278,3079.9,3078.8,0.05851375]
[1767882592193,0.001,3079.9,3078.8,0.05851375]
[1767882592594,0.001,3079.9,3079.1,3.24770225]
[1767882593008,0.001,3079.9,3079.1,6.4954045]
[1767882593207,0.001,3079.9,3079.2,0.05851375]
[1767882593510,0.001,3079.9,3079.4,0.05851375]
[1767882593835,0.001,3079.9,3079.2,0.05851375]
[1767882594018,0.001,3079.9,3079.3,0.05851375]
[1767882594189,0.001,3079.9,3079.4,0.05851375]
[1767882594709,0.001,3079.9,3079.5,3.2472804]
[1767882594893,0.001,3079.9,3079.5,6.4945608]
[1767882595092,0.001,3079.9,3079.4,3.24738485]
[1767882595291,0.001,3079.9,3079.2,3.24753596]
[1767882595491,0.001,3079.9,3079.4,3.24738064]
[1767882595692,0.001,3079.9,3079.2,3.24756585]
[1767882596015,0.001,3079.9,3079.0,0.90951375]
[1767882596180,0.001,3079.9,3079.4,3.24732849]
[1767882596380,0.001,3079.9,3079.2,3.30603812]
[1767882596614,0.001,3079.9,3079.4,3.24734628]
[1767882596786,0.001,3079.9,3079.3,3.24749131]
[1767882596988,0.001,3079.9,3079.3,6.49498262]
[1767882597317,0.001,3079.9,3079.3,3.24749131]
[1767882597499,0.001,3079.9,3079.0,0.851]
[1767882597709,0.001,3079.9,3079.2,3.2475645]
[1767882598219,0.001,3079.9,3079.2,3.24757678]
[1767882598754,0.001,3079.9,3078.9,3.24787719]
[1767882598896,0.001,3079.9,3078.1,0.05851375]
[1767882598897,0.93388768,3079.4,3078.1,3.30719108]
[1767882599244,0.45573318,3079.3,3078.2,3.30713518]
[1767882599399,1.78388768,3079.8,3078.5,3.25026494]
[1767882599726,0.93388768,3079.7,3078.5,0.002]
[1767882600436,0.93388768,3078.7,3077.3,0.002]
[1767882600727,0.93388768,3079.4,3078.0,0.05851375]
[1767882600904,3.24696408,3079.8,3078.4,0.92901596]
[1767882601247,3.24696408,3079.8,3077.6,0.851]
[1767882601248,0.93388768,3079.1,3077.6,0.851]
[1767882601397,0.93388768,3079.7,3078.2,0.05851375]
[1767882601595,0.93488768,3079.6,3078.1,0.05851375]
[1767882601822,4.55733177,3079.5,3078.0,3.2488103]
[1767882602122,0.85,3079.4,3078.0,3.24886289]
[1767882602427,0.98402425,3079.1,3077.6,0.06051375]
[1767882602595,0.98402425,3078.7,3077.6,0.002]
[1767882602796,9.7459554,3078.2,3077.3,0.002]
[1767882603029,6.4973036,3078.2,3077.3,0.002]
[1767882603497,6.4973036,3078.2,3076.3,0.05851375]
[1767882603498,0.98402425,3077.9,3076.1,3.25081961]
[1767882603700,0.98402425,3077.9,3075.3,3.31021971]
[1767882603701,3.62344409,3077.0,3075.3,0.99904652]
[1767882603933,0.36234441,3076.9,3075.6,3.25130632]
[1767882604097,0.98402425,3078.1,3076.2,0.94053277]
[1767882604431,0.98402425,3078.1,3076.1,0.05851375]
[1767882604432,3.24844074,3078.4,3076.7,0.99904652]
[1767882604595,0.36234441,3078.4,3076.9,0.99904652]
[1767882604920,0.36234441,3078.4,3076.7,0.05851375]
[1767882604921,1.75267013,3078.7,3076.7,1.05829571]
[1767882605109,1.75267013,3078.7,3076.9,0.05851375]
[1767882605307,1.75267013,3078.7,3076.5,0.05851375]
[1767882605308,3.62344409,3077.7,3076.5,3.25044693]
[1767882605508,0.851,3077.9,3076.2,0.99978196]
[1767882605718,4.52511422,3077.7,3075.8,0.851]
[1767882605914,0.90167013,3077.2,3075.3,3.25171071]
[1767882606108,0.851,3077.1,3075.2,5.10258849]
[1767882606309,3.423,3077.9,3075.6,0.99978196]
[1767882606310,0.17526701,3077.0,3075.6,0.99978196]
[1767882606513,0.90167013,3077.2,3075.0,0.99978196]
[1767882606837,3.62344409,3077.3,3074.5,3.25249668]
[1767882606838,6.50110518,3076.4,3074.6,0.05851375]
[1767882607039,0.851,3076.3,3074.7,3.25226812]
[1767882607226,0.851,3076.3,3074.5,0.99978196]
[1767882607227,3.62344409,3076.1,3074.5,0.99978196]
[1767882607536,1.58621052,3076.2,3074.8,0.99978196]
[1767882607704,6.50097612,3076.5,3074.8,0.99978196]
[1767882607905,0.851,3076.8,3075.0,0.05851375]
[1767882608105,6.50047128,3076.7,3074.8,1.05829571]
[1767882608336,3.24960192,3077.3,3075.3,0.99978196]
[1767882608495,0.851,3077.1,3075.3,0.99978196]
[1767882608853,0.851,3077.1,3074.6,6.5049112]
[1767882608854,3.62344409,3076.3,3074.6,6.5049112]
[1767882609002,4.47444409,3076.3,3074.6,3.2524556]
[1767882609199,0.90167013,3076.2,3074.2,0.851]
[1767882609401,0.90167013,3075.5,3073.6,0.851]
[1767882609610,0.851,3075.4,3074.0,3.25300214]
[1767882609813,0.90167013,3076.0,3074.5,3.25256139]
[1767882609996,0.90167013,3075.4,3073.5,0.99978196]
[1767882610199,0.90167013,3075.4,3073.6,0.05851375]
[1767882610413,1.30351142,3075.3,3073.6,0.05851375]
[1767882610616,3.62344409,3076.3,3074.5,3.25256139]
[1767882610812,6.5017392,3076.1,3074.3,3.25270403]
[1767882611022,7.3526103,3076.2,3074.4,1.05829571]
[1767882611624,4.10178231,3076.2,3074.6,0.05851375]
[1767882611843,0.41017823,3076.1,3074.8,1.05829571]
[1767882612052,0.05851375,3078.2,3075.5,0.05851375]
[1767882612053,4.15116645,3077.4,3075.5,0.05851375]
[1767882612222,3.24940917,3077.5,3076.0,0.05851375]
[1767882612416,3.24863705,3078.3,3076.1,1.85078196]
[1767882612645,4.52511422,3078.4,3076.1,1.85078196]
[1767882612646,6.4973036,3078.2,3076.4,0.05851375]
[1767882612863,0.64973036,3078.1,3076.7,0.05851375]
[1767882613013,0.64973036,3078.1,3075.8,3.251143]
[1767882613014,0.90167013,3078.0,3075.8,3.251143]
[1767882613208,3.62344409,3077.7,3075.7,0.99978196]
[1767882613412,4.47444409,3077.7,3075.9,0.851]
[1767882613617,0.44744441,3077.6,3075.9,1.04192957]
[1767882613813,3.62344409,3077.2,3075.3,0.05851375]
[1767882614109,0.851,3077.1,3075.6,3.25130035]
[1767882614311,0.851,3077.1,3074.0,3.31160418]
[1767882614312,3.62344409,3076.1,3074.0,3.31160418]
[1767882614545,1.06167013,3075.9,3073.7,1.05829571]
[1767882614714,0.851,3075.8,3074.0,1.05829571]
[1767882614912,6.5027962,3075.6,3074.1,3.25298461]
[1767882615136,4.10232981,3075.7,3074.1,6.50596922]
[1767882615442,7.35365962,3075.7,3074.1,6.50596922]
[1767882615668,3.78344409,3075.5,3073.3,1.05829571]
[1767882615939,3.62344409,3075.5,3073.9,3.25319159]
[1767882616115,3.62344409,3075.5,3073.7,3.25331669]
[1767882616313,1.63703609,3075.6,3074.0,6.50617927]
[1767882616314,0.73536596,3075.6,3074.0,6.50617927]
[1767882616621,0.851,3075.5,3074.0,6.50617927]
[1767882616811,0.73536596,3075.6,3074.4,7.50511632]
[1767882617012,3.25034128,3076.6,3074.7,4.62322605]
[1767882617335,0.851,3076.5,3074.4,7.35633436]
[1767882617553,3.62344409,3076.3,3074.4,3.25266718]
[1767882617715,0.16,3075.8,3073.8,0.05851375]
[1767882618040,0.16,3075.8,3073.6,1.90929571]
[1767882618041,0.851,3075.7,3073.6,1.90929571]
[1767882618540,3.68195784,3076.3,3073.6,1.90929571]
[1767882618541,1.06020238,3076.4,3074.3,7.50532792]
[1767882618845,0.851,3076.3,3074.4,0.05851375]
[1767882619041,3.25067313,3076.3,3074.8,0.05851375]
[1767882619255,3.25023564,3076.7,3074.9,0.05851375]
[1767882619558,0.851,3076.6,3074.9,0.05851375]
[1767882619853,0.73514713,3076.5,3074.6,7.50469316]
[1767882620015,0.73514713,3076.5,3074.6,8.35569316]
[1767882620211,0.851,3076.4,3074.6,4.1034556]
[1767882620418,3.62344409,3076.3,3074.6,0.851]
[1767882620722,3.62344409,3076.3,3074.0,0.05851375]
[1767882620723,3.62344409,3075.9,3074.0,0.05851375]
[1767882620913,6.50195058,3076.0,3074.1,6.50596504]
[1767882621121,0.851,3075.9,3074.1,6.50596504]
[1767882621321,0.53761142,3076.2,3074.7,0.05851375]
[1767882621521,0.90167013,3077.8,3075.5,0.99978196]
[1767882621720,0.851,3077.7,3075.5,0.99978196]
[1767882621918,0.851,3077.7,3075.6,0.05851375]
[1767882622415,0.90267013,3078.4,3076.4,0.05851375]
[1767882622721,10.59671058,3078.3,3076.2,1.90929571]
[1767882622915,6.4985703,3077.6,3075.8,3.25118668]
[1767882623114,6.4985703,3077.6,3075.7,3.25120003]
[1767882623342,6.4985703,3077.6,3076.0,0.99978196]
[1767882623524,6.4985703,3077.6,3075.7,3.25120003]
[1767882623725,6.4985703,3077.6,3075.8,0.05851375]
[1767882623921,6.4985703,3077.6,3076.0,0.05851375]
[1767882623922,0.64985703,3077.5,3076.0,0.05851375]
[1767882624120,0.64985703,3077.5,3076.0,0.851]
[1767882624918,3.24949632,3077.4,3076.1,3.25077563]
[1767882625117,6.49899264,3077.4,3076.1,3.25077563]
[1767882625354,6.49899264,3077.4,3075.1,0.99978196]
[1767882625355,0.16,3077.3,3075.1,0.99978196]
[1767882625515,17.5230995,3077.4,3075.0,0.05851375]
[1767882625516,1.76830995,3077.2,3075.4,0.05851375]
[1767882625722,3.24949632,3077.4,3076.1,6.5017392]
[1767882625915,9.74848896,3077.4,3075.6,3.25139378]
[1767882626131,13.37193305,3077.4,3075.3,1.05829571]
[1767882626330,9.74848896,3077.4,3075.4,3.25157747]
[1767882626629,6.49899264,3077.4,3076.0,3.25095102]
[1767882626948,3.24970752,3077.2,3075.8,6.50237336]
[1767882627250,6.49941504,3077.2,3075.8,3.25118668]
[1767882627549,7.35041504,3077.2,3075.7,3.2512675]
[1767882627849,0.71488497,3077.3,3076.1,0.05851375]
[1767882628144,4.10032061,3077.6,3076.1,0.05851375]
[1767882628545,3.41375507,3078.3,3076.1,0.05851375]
[1767882628546,3.24858956,3078.3,3076.3,0.05851375]
[1767882628747,0.001,3078.4,3076.5,0.05851375]
[1767882628748,0.001,3077.2,3076.5,0.05851375]
[1767882629046,4.0996518,3078.2,3076.9,6.50004874]
[1767882629248,0.40996518,3078.1,3076.9,6.50004874]
[1767882629451,0.40996518,3078.1,3076.5,0.05851375]
[1767882629621,0.851,3078.0,3076.5,3.25037797]
[1767882629823,0.851,3078.0,3076.1,1.05829571]
[1767882630139,0.851,3078.0,3076.3,0.05851375]
[1767882630352,0.851,3078.0,3075.9,0.05851375]
[1767882630550,4.3154252,3077.7,3075.8,3.25115717]
[1767882630775,0.43154252,3077.6,3075.9,0.05851375]
[1767882630953,0.851,3077.7,3076.5,3.25038243]
[1767882631256,6.4973238,3078.2,3076.6,0.05851375]
[1767882631450,4.3154252,3078.2,3076.3,3.25058829]
[1767882631650,0.90167013,3078.2,3076.5,0.05851375]
[1767882631828,1.91574405,3078.1,3076.7,0.05851375]
[1767882632219,1.91574405,3078.1,3076.4,1.05829571]
[1767882632538,1.91574405,3078.1,3076.3,3.25058829]
[1767882632739,1.18853327,3078.0,3075.9,1.83070564]
[1767882632941,0.851,3077.9,3076.4,0.05851375]
[1767882633124,6.49814802,3077.8,3076.5,3.25044693]
[1767882633319,6.49814802,3077.8,3076.3,3.2506206]
[1767882633651,0.7349148,3077.7,3076.4,3.25053833]
[1767882633853,0.7349148,3077.7,3076.2,3.25067021]
[1767882634146,0.7349148,3077.7,3076.3,3.2506274]
[1767882634350,0.7349148,3077.7,3076.4,3.2505315]
[1767882634658,0.7349148,3077.7,3076.3,3.25062675]
[1767882634857,0.72330628,3077.6,3076.3,3.25062675]
[1767882635023,9.74817219,3077.5,3075.4,4.23131325]
[1767882635239,9.74817219,3077.5,3075.4,0.97970564]
[1767882635240,0.99695886,3077.4,3075.4,0.97970564]
[1767882635437,0.99695886,3077.0,3075.0,0.002]
[1767882635738,4.57995886,3076.5,3075.0,0.002]
[1767882635933,0.16,3076.0,3074.6,0.002]
[1767882636154,1.15695886,3076.0,3074.6,0.002]
[1767882636361,0.16,3076.0,3074.6,0.002]
[1767882636554,0.3583,3075.9,3074.6,0.002]
[1767882636755,0.16,3076.9,3075.1,3.25192128]
[1767882636962,0.16,3076.9,3074.6,0.002]
[1767882636963,0.851,3076.4,3074.6,0.002]
[1767882637197,6.5013165,3076.3,3074.7,0.05851375]
[1767882637340,0.16,3076.1,3074.6,0.002]
[1767882637969,0.73523165,3076.2,3074.6,0.002]
[1767882638171,0.851,3076.0,3074.6,0.06051375]
[1767882638377,0.851,3076.0,3074.6,0.002]
[1767882638535,0.16,3075.9,3074.6,0.002]
[1767882639167,13.00474672,3075.8,3074.6,0.002]
[1767882639333,1.15695886,3075.6,3073.4,3.25564438]
[1767882639534,0.16,3075.1,3073.4,0.002]
[1767882639742,0.851,3075.0,3073.4,0.002]
[1767882640776,0.16,3075.1,3073.4,0.002]
[1767882640777,0.99695886,3074.8,3073.4,0.002]
[1767882641074,3.41375507,3074.2,3073.4,0.002]
[1767882641278,10.95132934,3074.1,3073.4,1e-08]
[1767882641641,7.69834473,3074.1,3073.4,1e-08]
[1767882641859,10.95132934,3074.1,3073.4,1e-08]
[1767882642583,3.41375507,3073.8,3072.6,0.003]
[1767882642752,1.15695886,3073.7,3072.5,1e-08]
[1767882642954,0.16,3073.2,3071.3,0.05851375]
[1767882643158,3.25414904,3073.0,3071.6,6.51126448]
[1767882643497,6.50681588,3073.7,3071.9,1.03821939]
[1767882643768,3.41375507,3073.5,3071.6,6.51126448]
[1767882644067,9.76022382,3073.7,3071.6,6.51126448]
[1767882644268,6.50681588,3073.7,3071.8,0.05851375]
[1767882644567,6.50681588,3073.7,3071.9,0.05851375]
[1767882644749,0.16,3073.5,3071.6,3.25563224]
[1767882644943,0.16,3073.5,3071.4,3.25575554]
[1767882645137,0.16,3073.5,3071.5,3.31422638]
[1767882645342,0.16,3073.3,3071.2,3.25803612]
[1767882645550,0.16,3072.4,3071.2,0.002]
[1767882645836,3.41375507,3072.0,3071.2,0.002]
[1767882646146,0.05851375,3071.6,3071.0,0.97970564]
[1767882646389,0.05851375,3071.5,3070.7,0.003]
[1767882646561,0.05851375,3072.2,3070.7,3.25957136]
[1767882646867,0.91051375,3072.3,3070.7,3.25957136]
[1767882647050,0.91051375,3072.3,3070.7,6.5161578]
[1767882647368,3.25499641,3072.2,3070.7,0.003]
[1767882647566,0.41655102,3072.1,3070.7,0.98270564]
[1767882647869,0.05851375,3073.4,3071.4,0.97970564]
[1767882648055,3.25329613,3073.9,3071.8,3.41375507]
[1767882648236,6.50701406,3073.7,3071.8,4.39346071]
[1767882648435,6.50701406,3073.7,3071.4,3.41375507]
[1767882648772,6.50701406,3073.7,3071.5,4.61971341]
[1767882648948,3.69852152,3073.2,3070.8,5.47171341]
[1767882649147,3.69852152,3073.2,3070.8,1.83170564]
[1767882649148,0.05851375,3072.9,3070.8,1.83170564]
[1767882649446,6.50872168,3072.8,3070.9,6.5127487]
[1767882650043,0.852,3072.7,3071.2,3.64000777]
[1767882650574,0.852,3072.8,3071.6,3.64000777]
[1767882650770,0.852,3072.8,3071.3,0.97970564]
[1767882650975,6.50745102,3073.4,3071.4,1.01226408]
[1767882651382,6.50787452,3073.2,3071.5,3.25573823]
[1767882651671,0.21851375,3073.0,3070.8,5.47171341]
[1767882651872,0.21851375,3073.0,3070.8,0.97970564]
[1767882652070,0.21851375,3073.0,3071.3,3.25589951]
[1767882652275,0.852,3072.9,3071.4,3.25581944]
[1767882652575,1.05547261,3072.4,3070.7,0.003]
[1767882652776,1.15695886,3072.0,3070.7,0.003]
[1767882652977,0.99695886,3071.4,3069.0,2.13725224]
[1767882653273,3.423,3071.5,3069.0,7.67432708]
[1767882653274,0.99695886,3070.9,3069.0,7.67432708]
[1767882653474,0.16,3071.1,3069.9,0.002]
[1767882653674,9.76816878,3071.2,3069.9,0.002]
[1767882653675,7.36411252,3071.2,3069.9,0.002]
[1767882653909,3.25598405,3071.3,3069.9,0.002]
[1767882654048,0.852,3071.4,3070.0,0.05851375]
[1767882654377,0.852,3071.5,3070.0,0.05851375]
[1767882654773,0.852,3071.5,3070.1,0.01570572]
[1767882655073,0.852,3071.5,3069.9,0.002]
[1767882655074,0.852,3071.4,3069.9,0.002]
[1767882655451,6.51190048,3071.3,3069.9,0.002]
[1767882655651,3.25595024,3071.3,3069.9,0.002]
[1767882655854,1.17759502,3071.2,3069.9,0.002]
[1767882656386,0.32559502,3071.2,3069.9,0.002]
[1767882656555,0.852,3071.1,3069.9,0.002]
[1767882656879,4.10750795,3071.8,3070.2,0.05851375]
[1767882657075,0.852,3072.0,3070.4,0.05851375]
[1767882657275,0.852,3072.0,3070.6,0.05851375]
[1767882657482,6.50836702,3073.0,3071.0,0.05851375]
[1767882657691,0.852,3072.9,3070.8,0.05851375]
[1767882657851,0.852,3072.9,3071.0,0.05851375]
[1767882658056,0.852,3072.9,3070.8,0.05851375]
[1767882658278,0.852,3072.9,3071.0,0.05851375]
[1767882658791,0.99695886,3074.1,3071.8,0.05851375]
[1767882659093,7.35818086,3074.0,3072.1,0.05851375]
[1767882659452,7.35818086,3074.0,3072.3,0.05851375]
[1767882660081,7.35818086,3074.0,3072.2,6.50999282]
[1767882660477,1.15695886,3073.9,3071.2,3.31452207]
[1767882660691,1.15695886,3073.9,3071.6,3.25558857]
[1767882660692,0.16,3073.3,3071.6,3.25558857]
[1767882660983,1.50213206,3073.8,3072.1,6.51017339]
[1767882661157,0.852,3073.8,3072.2,0.05851375]
[1767882661358,3.25118668,3075.8,3073.0,0.05851375]
[1767882661557,3.25044693,3076.5,3074.3,4.1112844]
[1767882661792,0.852,3076.4,3074.4,0.05851375]
[1767882661969,0.852,3076.4,3074.3,4.1112844]
[1767882662202,1.02163691,3076.0,3073.3,3.25383138]
[1767882662496,4.1112844,3076.2,3073.5,0.05851375]
[1767882662497,0.16,3075.6,3073.5,0.05851375]
[1767882662657,0.05851375,3074.5,3071.8,0.95147712]
[1767882662862,0.16,3074.3,3072.1,0.05851375]
[1767882663159,0.16,3074.3,3071.8,0.95147712]
[1767882663358,0.16,3074.3,3072.1,3.25502498]
[1767882663573,1.02163691,3075.0,3072.4,0.05851375]
[1767882663574,3.25287879,3074.2,3072.4,0.05851375]
[1767882663888,0.852,3074.6,3072.7,0.05851375]
[1767882664055,0.852,3074.7,3072.9,0.05851375]
[1767882664257,0.852,3074.9,3072.9,0.05851375]
[1767882664469,4.1112844,3074.7,3072.1,0.05851375]
[1767882664665,0.16,3074.1,3071.1,5.06276152]
[1767882664880,0.16,3074.1,3070.5,3.25678184]
[1767882664881,0.16,3073.3,3070.7,0.05851375]
[1767882665085,0.16,3073.1,3070.6,0.05851375]
[1767882665294,0.16,3073.1,3069.7,1.00999087]
[1767882665295,0.16,3072.8,3069.7,1.00999087]
[1767882665481,13.02295292,3071.5,3069.0,1.1575466]
[1767882665679,4.1112844,3071.2,3069.0,1.1575466]
[1767882665965,0.852,3071.1,3069.5,0.05851375]
[1767882666292,0.852,3071.1,3069.6,0.05851375]
[1767882666496,3.2546786,3072.5,3069.8,4.1112844]
[1767882666661,0.16,3072.0,3069.3,0.05851375]
[1767882666863,0.16,3072.0,3069.4,0.05851375]
[1767882667058,0.16,3071.5,3069.0,7.67429374]
[1767882667274,0.16,3071.3,3069.0,1.1575466]